[Event "Titled Tuesday Blitz April 18 Early 2023"]
[White "Hua, Lefong"]
[Black "Sadhwani, Raunak"]
[WhiteFideId "2602253"]
[BlackFideId "35093487"]
[WhiteElo "2629"]
[BlackElo "2631"]
[Result "1/2-1/2"]
[Round "02"]
[TimeControl "180+2"]
[Date "2023.04.18"]
[WhiteClock "0:00:17"]
[BlackClock "0:00:04"]

1. d4 {[%clk 0:03:00]}  g6 {[%clk 0:02:59]} 2. c4 {[%clk 0:03:00]}  d6 {[%clk 0:03:00]} 3. e4 {[%clk 0:03:01]}  Bg7 {[%clk 0:03:01]} 4. f4 {[%clk 0:03:00]}  c5 {[%clk 0:02:51]} 5. d5 {[%clk 0:03:00]}  e6 {[%clk 0:02:51]} 6. Nf3 {[%clk 0:02:59]}  exd5 {[%clk 0:02:47]} 7. cxd5 {[%clk 0:03:00]}  Nf6 {[%clk 0:02:47]} 8. Nc3 {[%clk 0:03:00]}  O-O {[%clk 0:02:47]} 9. Be2 {[%clk 0:03:00]}  b5 {[%clk 0:02:47]} 10. e5 {[%clk 0:03:00]}  dxe5 {[%clk 0:02:45]} 11. fxe5 {[%clk 0:03:01]}  Ng4 {[%clk 0:02:45]} 12. Bg5 {[%clk 0:03:00]}  Qb6 {[%clk 0:02:38]} 13. O-O {[%clk 0:02:58]}  c4+ {[%clk 0:02:32]} 14. Kh1 {[%clk 0:02:58]}  Nxe5 {[%clk 0:02:10]} 15. Be7 {[%clk 0:02:45]}  Re8 {[%clk 0:01:53]} 16. d6 {[%clk 0:02:46]}  Ng4 {[%clk 0:01:45]} 17. Nd5 {[%clk 0:02:38]}  Nf2+ {[%clk 0:01:44]} 18. Rxf2 {[%clk 0:02:35]}  Qxf2 {[%clk 0:01:45]} 19. Nc7 {[%clk 0:02:27]}  Bd7 {[%clk 0:01:44]} 20. Nxa8 {[%clk 0:02:23]}  Bxb2 {[%clk 0:00:51]} 21. Rb1 {[%clk 0:02:23]}  Bg7 {[%clk 0:00:45]} 22. Nc7 {[%clk 0:02:19]}  Rc8 {[%clk 0:00:45]} 23. Bh4 {[%clk 0:01:52]}  Qc5 {[%clk 0:00:41]} 24. Nd5 {[%clk 0:01:52]}  c3 {[%clk 0:00:41]} 25. Ne7+ {[%clk 0:01:49]}  Kh8 {[%clk 0:00:41]} 26. Rc1 {[%clk 0:01:36]}  Rf8 {[%clk 0:00:39]} 27. Qd5 {[%clk 0:01:29]}  Qe3 {[%clk 0:00:36]} 28. Rc2 {[%clk 0:01:23]}  Na6 {[%clk 0:00:21]} 29. Bg5 {[%clk 0:01:18]}  Qc5 {[%clk 0:00:18]} 30. Qxc5 {[%clk 0:01:14]}  Nxc5 {[%clk 0:00:19]} 31. Be3 {[%clk 0:01:04]}  Ne4 {[%clk 0:00:19]} 32. Bd3 {[%clk 0:01:02]}  Nxd6 {[%clk 0:00:18]} 33. Bd4 {[%clk 0:01:01]}  Bxd4 {[%clk 0:00:14]} 34. Nxd4 {[%clk 0:01:02]}  b4 {[%clk 0:00:15]} 35. Nec6 {[%clk 0:00:57]}  Re8 {[%clk 0:00:11]} 36. h3 {[%clk 0:00:56]}  Re3 {[%clk 0:00:06]} 37. Ba6 {[%clk 0:00:48]}  Re1+ {[%clk 0:00:02]} 38. Kh2 {[%clk 0:00:48]}  Rd1 {[%clk 0:00:03]} 39. Be2 {[%clk 0:00:38]}  Rd2 {[%clk 0:00:03]} 40. Rxd2 {[%clk 0:00:37]}  cxd2 {[%clk 0:00:04]} 41. Nxb4 {[%clk 0:00:37]}  Ba4 {[%clk 0:00:04]} 42. Nb3 {[%clk 0:00:37]}  Ne4 {[%clk 0:00:03]} 43. Kg1 {[%clk 0:00:24]}  Nc3 {[%clk 0:00:02]} 44. Bf3 {[%clk 0:00:22]}  d1=Q+ {[%clk 0:00:02]} 45. Bxd1 {[%clk 0:00:22]}  Nxd1 {[%clk 0:00:02]} 46. Nc5 {[%clk 0:00:23]}  Bb5 {[%clk 0:00:03]} 47. a4 {[%clk 0:00:21]}  Be8 {[%clk 0:00:03]} 48. a5 {[%clk 0:00:21]}  Nb2 {[%clk 0:00:02]} 49. Kf2 {[%clk 0:00:19]}  Nc4 {[%clk 0:00:02]} 50. a6 {[%clk 0:00:18]}  Bb5 {[%clk 0:00:02]} 51. Kf3 {[%clk 0:00:17]}  Kg7 {[%clk 0:00:02]} 52. Ke4 {[%clk 0:00:18]}  Nb6 {[%clk 0:00:02]} 53. Ke5 {[%clk 0:00:17]}  Bf1 {[%clk 0:00:02]} 54. Kd6 {[%clk 0:00:15]}  Bxg2 {[%clk 0:00:03]} 55. Kc7 {[%clk 0:00:16]}  Bxh3 {[%clk 0:00:03]} 56. Kb8 {[%clk 0:00:16]}  Nc8 {[%clk 0:00:01]} 57. Nc6 {[%clk 0:00:17]}  Nd6 {[%clk 0:00:01]} 58. Kxa7 {[%clk 0:00:16]}  Bf1 {[%clk 0:00:02]} 59. Kb6 {[%clk 0:00:16]}  Bxa6 {[%clk 0:00:02]} 60. Nxa6 {[%clk 0:00:17]}  h5 {[%clk 0:00:03]} 61. Kc5 {[%clk 0:00:17]}  Nf5 {[%clk 0:00:03]} 62. Kd5 {[%clk 0:00:16]}  h4 {[%clk 0:00:03]} 63. Ke4 {[%clk 0:00:17]}  h3 {[%clk 0:00:03]} 64. Kf3 {[%clk 0:00:17]}  g5 {[%clk 0:00:03]} 65. Ne5 {[%clk 0:00:17]}  f6 {[%clk 0:00:03]} 66. Ng4 {[%clk 0:00:18]}  Kg6 {[%clk 0:00:03]} 67. Nc5 {[%clk 0:00:17]}  Kh5 {[%clk 0:00:03]} 68. Nxf6+ {[%clk 0:00:17]}  Kh4 {[%clk 0:00:03]} 69. Kf2 {[%clk 0:00:16]}  g4 {[%clk 0:00:03]} 70. Nce4 {[%clk 0:00:16]}  g3+ {[%clk 0:00:02]} 71. Nxg3 {[%clk 0:00:16]}  Nxg3 {[%clk 0:00:03]} 72. Kg1 {[%clk 0:00:16]}  Ne2+ {[%clk 0:00:03]} 73. Kh2 {[%clk 0:00:16]}  Nd4 {[%clk 0:00:04]} 74. Ne4 {[%clk 0:00:16]}  Nf3+ {[%clk 0:00:05]} 75. Kh1 {[%clk 0:00:16]}  Kg4 {[%clk 0:00:03]} 76. Nf2+ {[%clk 0:00:16]}  Kg3 {[%clk 0:00:04]} 77. Nxh3 {[%clk 0:00:17]} 1/2-1/2


[Site "https://www.chess.com"]

[Event "Titled Tuesday Blitz April 18 Early 2023"]
[White "Poliakova, Varvara"]
[Black "Kollars, Dmitrij"]
[WhiteFideId "13518313"]
[BlackFideId "12909572"]
[WhiteElo "2075"]
[BlackElo "2584"]
[Result "1-0"]
[Round "02"]
[TimeControl "180+2"]
[Date "2023.04.18"]
[WhiteClock "0:01:21"]
[BlackClock "0:00:01"]

1. e4 {[%clk 0:03:00]}  e5 {[%clk 0:02:54]} 2. Nf3 {[%clk 0:03:00]}  Nc6 {[%clk 0:02:51]} 3. Bc4 {[%clk 0:03:00]}  Nf6 {[%clk 0:02:51]} 4. d3 {[%clk 0:02:57]}  Be7 {[%clk 0:02:46]} 5. c3 {[%clk 0:02:56]}  O-O {[%clk 0:02:47]} 6. Bb3 {[%clk 0:02:56]}  d5 {[%clk 0:02:46]} 7. Nbd2 {[%clk 0:02:56]}  Be6 {[%clk 0:02:46]} 8. O-O {[%clk 0:02:53]}  Qd7 {[%clk 0:02:45]} 9. Re1 {[%clk 0:02:49]}  dxe4 {[%clk 0:02:33]} 10. dxe4 {[%clk 0:02:50]}  Rfd8 {[%clk 0:02:31]} 11. Bc2 {[%clk 0:02:47]}  a5 {[%clk 0:02:26]} 12. a4 {[%clk 0:02:45]}  Bc5 {[%clk 0:02:10]} 13. Qe2 {[%clk 0:02:40]}  Nh5 {[%clk 0:02:00]} 14. Nxe5 {[%clk 0:02:26]}  Nxe5 {[%clk 0:01:47]} 15. Qxh5 {[%clk 0:02:26]}  Qd6 {[%clk 0:01:47]} 16. Nb3 {[%clk 0:02:07]}  Bxb3 {[%clk 0:01:12]} 17. Bxb3 {[%clk 0:02:08]}  Nd3 {[%clk 0:00:43]} 18. Be3 {[%clk 0:01:56]}  g6 {[%clk 0:00:22]} 19. Qf3 {[%clk 0:01:49]}  Nxe1 {[%clk 0:00:21]} 20. Qxf7+ {[%clk 0:01:43]}  Kh8 {[%clk 0:00:21]} 21. Bxc5 {[%clk 0:01:44]}  Qc6 {[%clk 0:00:12]} 22. Be7 {[%clk 0:01:35]}  Rd6 {[%clk 0:00:04]} 23. Rxe1 {[%clk 0:01:30]}  Qb6 {[%clk 0:00:04]} 24. Bxd6 {[%clk 0:01:28]}  Qxd6 {[%clk 0:00:05]} 25. e5 {[%clk 0:01:25]}  Qb6 {[%clk 0:00:04]} 26. Qf6+ {[%clk 0:01:25]}  Qxf6 {[%clk 0:00:04]} 27. exf6 {[%clk 0:01:26]}  Rf8 {[%clk 0:00:03]} 28. f7 {[%clk 0:01:24]}  Kg7 {[%clk 0:00:03]} 29. Re7 {[%clk 0:01:23]}  Rd8 {[%clk 0:00:02]} 30. h4 {[%clk 0:01:23]}  Rd2 {[%clk 0:00:01]} 31. Re8 {[%clk 0:01:21]} 1-0


[Site "https://www.chess.com"]

[Event "Titled Tuesday Blitz April 18 Early 2023"]
[White "Sargsyan, Shant"]
[Black "Seemann, Jakub"]
[WhiteFideId "13306766"]
[BlackFideId "21874697"]
[WhiteElo "2628"]
[BlackElo "2364"]
[Result "1/2-1/2"]
[Round "02"]
[TimeControl "180+2"]
[Date "2023.04.18"]
[WhiteClock "0:00:04"]
[BlackClock "0:00:03"]

1. g3 {[%clk 0:03:00]}  Nf6 {[%clk 0:02:59]} 2. Nf3 {[%clk 0:03:01]}  d5 {[%clk 0:03:00]} 3. Bg2 {[%clk 0:03:02]}  g6 {[%clk 0:03:00]} 4. b3 {[%clk 0:03:01]}  Bg7 {[%clk 0:03:00]} 5. Bb2 {[%clk 0:03:02]}  O-O {[%clk 0:03:01]} 6. c4 {[%clk 0:03:03]}  c6 {[%clk 0:02:57]} 7. O-O {[%clk 0:03:03]}  a5 {[%clk 0:02:56]} 8. d3 {[%clk 0:03:03]}  a4 {[%clk 0:02:55]} 9. cxd5 {[%clk 0:03:03]}  cxd5 {[%clk 0:02:55]} 10. bxa4 {[%clk 0:03:03]}  Nc6 {[%clk 0:02:53]} 11. Nc3 {[%clk 0:03:03]}  Qa5 {[%clk 0:02:52]} 12. Qb3 {[%clk 0:03:01]}  e6 {[%clk 0:02:49]} 13. Rfc1 {[%clk 0:03:00]}  Nd7 {[%clk 0:02:47]} 14. Nb5 {[%clk 0:02:49]}  Qxa4 {[%clk 0:02:36]} 15. Bxg7 {[%clk 0:02:47]}  Kxg7 {[%clk 0:02:29]} 16. Qb2+ {[%clk 0:02:48]}  Kg8 {[%clk 0:02:27]} 17. h4 {[%clk 0:02:45]}  h5 {[%clk 0:02:15]} 18. Ng5 {[%clk 0:02:40]}  Nde5 {[%clk 0:02:11]} 19. Nd6 {[%clk 0:02:27]}  Bd7 {[%clk 0:02:08]} 20. Rab1 {[%clk 0:01:45]}  Qxa2 {[%clk 0:01:53]} 21. Qxa2 {[%clk 0:01:46]}  Rxa2 {[%clk 0:01:53]} 22. Rxb7 {[%clk 0:01:47]}  Nd4 {[%clk 0:01:29]} 23. Bf1 {[%clk 0:01:46]}  f6 {[%clk 0:01:11]} 24. Nh3 {[%clk 0:01:46]}  Ra6 {[%clk 0:01:07]} 25. f4 {[%clk 0:01:27]}  Rxd6 {[%clk 0:01:07]} 26. fxe5 {[%clk 0:01:27]}  fxe5 {[%clk 0:01:08]} 27. Rcc7 {[%clk 0:01:25]}  Rf7 {[%clk 0:01:00]} 28. Ng5 {[%clk 0:01:25]}  Re7 {[%clk 0:00:57]} 29. e3 {[%clk 0:01:16]}  Nf5 {[%clk 0:00:52]} 30. Kf2 {[%clk 0:01:16]}  Kf8 {[%clk 0:00:47]} 31. Nf3 {[%clk 0:01:14]}  e4 {[%clk 0:00:36]} 32. Ne5 {[%clk 0:01:07]}  Be8 {[%clk 0:00:36]} 33. Rxe7 {[%clk 0:01:00]}  Nxe7 {[%clk 0:00:37]} 34. Rb8 {[%clk 0:01:01]}  Nc6 {[%clk 0:00:21]} 35. Nxg6+ {[%clk 0:00:52]}  Kf7 {[%clk 0:00:15]} 36. Ra8 {[%clk 0:00:51]}  Kxg6 {[%clk 0:00:12]} 37. Rxe8 {[%clk 0:00:51]}  Ne5 {[%clk 0:00:11]} 38. dxe4 {[%clk 0:00:41]}  dxe4 {[%clk 0:00:12]} 39. Be2 {[%clk 0:00:42]}  Rb6 {[%clk 0:00:10]} 40. Rg8+ {[%clk 0:00:42]}  Kf6 {[%clk 0:00:08]} 41. Bxh5 {[%clk 0:00:36]}  Rb2+ {[%clk 0:00:08]} 42. Kf1 {[%clk 0:00:37]}  Nc4 {[%clk 0:00:08]} 43. Kg1 {[%clk 0:00:21]}  Nxe3 {[%clk 0:00:07]} 44. g4 {[%clk 0:00:22]}  Ke5 {[%clk 0:00:07]} 45. Rf8 {[%clk 0:00:19]}  Nd5 {[%clk 0:00:06]} 46. Rf2 {[%clk 0:00:18]}  Rb1+ {[%clk 0:00:06]} 47. Kh2 {[%clk 0:00:18]}  e3 {[%clk 0:00:06]} 48. Ra2 {[%clk 0:00:17]}  Kf4 {[%clk 0:00:05]} 49. g5 {[%clk 0:00:16]}  Nc3 {[%clk 0:00:04]} 50. Rg2 {[%clk 0:00:15]}  e5 {[%clk 0:00:02]} 51. g6 {[%clk 0:00:14]}  Rb8 {[%clk 0:00:03]} 52. g7 {[%clk 0:00:14]}  Rg8 {[%clk 0:00:04]} 53. Bf7 {[%clk 0:00:07]}  e2 {[%clk 0:00:03]} 54. Bxg8 {[%clk 0:00:03]}  e1=Q {[%clk 0:00:03]} 55. Bc4 {[%clk 0:00:03]}  Qxh4+ {[%clk 0:00:03]} 56. Kg1 {[%clk 0:00:03]}  Qe1+ {[%clk 0:00:04]} 57. Kh2 {[%clk 0:00:03]}  Qh4+ {[%clk 0:00:04]} 58. Kg1 {[%clk 0:00:04]}  Qe1+ {[%clk 0:00:03]} 59. Bf1 {[%clk 0:00:05]}  Qe3+ {[%clk 0:00:03]} 60. Kh2 {[%clk 0:00:04]}  Ne4 {[%clk 0:00:02]} 61. g8=Q {[%clk 0:00:04]}  Qe1 {[%clk 0:00:03]} 62. Qg4+ {[%clk 0:00:03]}  Ke3 {[%clk 0:00:04]} 63. Rd2 {[%clk 0:00:03]}  Qxd2+ {[%clk 0:00:04]} 64. Qg2 {[%clk 0:00:02]}  Qf2 {[%clk 0:00:02]} 65. Qxf2+ {[%clk 0:00:02]}  Kxf2 {[%clk 0:00:03]} 66. Bd3 {[%clk 0:00:02]}  Ng5 {[%clk 0:00:04]} 67. Bg6 {[%clk 0:00:02]}  Kf3 {[%clk 0:00:03]} 68. Kg1 {[%clk 0:00:02]}  Ke2 {[%clk 0:00:03]} 69. Kg2 {[%clk 0:00:02]}  Ne6 {[%clk 0:00:04]} 70. Kg3 {[%clk 0:00:03]}  Nf4 {[%clk 0:00:04]} 71. Bh7 {[%clk 0:00:03]}  Ke3 {[%clk 0:00:04]} 72. Kg4 {[%clk 0:00:04]}  Kd4 {[%clk 0:00:04]} 73. Kf5 {[%clk 0:00:04]}  Nd5 {[%clk 0:00:04]} 74. Ke6 {[%clk 0:00:04]}  Nf4+ {[%clk 0:00:05]} 75. Kd6 {[%clk 0:00:04]}  Nd3 {[%clk 0:00:04]} 76. Bxd3 {[%clk 0:00:04]}  e4 {[%clk 0:00:03]} 77. Bxe4 {[%clk 0:00:04]} 1/2-1/2


[Site "https://www.chess.com"]

[Event "Titled Tuesday Blitz April 18 Early 2023"]
[White "Lamaze, Simon"]
[Black "Svane, Frederik"]
[WhiteFideId "36069264"]
[BlackFideId "12923044"]
[WhiteElo "2272"]
[BlackElo "2502"]
[Result "0-1"]
[Round "02"]
[TimeControl "180+2"]
[Date "2023.04.18"]
[WhiteClock "0:00:16"]
[BlackClock "0:00:06"]

1. e4 {[%clk 0:03:00]}  c5 {[%clk 0:02:59]} 2. Nf3 {[%clk 0:03:01]}  e6 {[%clk 0:02:59]} 3. d4 {[%clk 0:03:01]}  cxd4 {[%clk 0:03:00]} 4. Nxd4 {[%clk 0:03:02]}  Nc6 {[%clk 0:03:01]} 5. Nc3 {[%clk 0:03:02]}  a6 {[%clk 0:03:02]} 6. Be3 {[%clk 0:03:01]}  Nf6 {[%clk 0:03:02]} 7. Qd2 {[%clk 0:02:52]}  Bb4 {[%clk 0:02:59]} 8. f3 {[%clk 0:02:51]}  d5 {[%clk 0:02:58]} 9. Nxc6 {[%clk 0:02:39]}  bxc6 {[%clk 0:02:58]} 10. a3 {[%clk 0:02:39]}  Be7 {[%clk 0:02:54]} 11. Na4 {[%clk 0:02:18]}  Rb8 {[%clk 0:02:33]} 12. b4 {[%clk 0:02:13]}  dxe4 {[%clk 0:02:31]} 13. Qxd8+ {[%clk 0:02:02]}  Bxd8 {[%clk 0:02:31]} 14. Nc5 {[%clk 0:02:03]}  Nd5 {[%clk 0:02:29]} 15. Bd4 {[%clk 0:01:56]}  exf3 {[%clk 0:02:26]} 16. gxf3 {[%clk 0:01:53]}  O-O {[%clk 0:02:23]} 17. Bxa6 {[%clk 0:01:50]}  e5 {[%clk 0:02:20]} 18. Bxc8 {[%clk 0:01:20]}  Rxc8 {[%clk 0:02:16]} 19. Bf2 {[%clk 0:01:19]}  Re8 {[%clk 0:02:10]} 20. c4 {[%clk 0:01:19]}  Nf4 {[%clk 0:02:07]} 21. O-O-O {[%clk 0:01:19]}  Be7 {[%clk 0:01:49]} 22. Kc2 {[%clk 0:01:18]}  f5 {[%clk 0:01:44]} 23. Rhe1 {[%clk 0:01:17]}  Bf8 {[%clk 0:01:20]} 24. Nd7 {[%clk 0:01:15]}  e4 {[%clk 0:01:14]} 25. fxe4 {[%clk 0:01:14]}  fxe4 {[%clk 0:01:07]} 26. Nxf8 {[%clk 0:01:14]}  Kxf8 {[%clk 0:01:07]} 27. Rd6 {[%clk 0:01:09]}  Nd3 {[%clk 0:01:05]} 28. Rf1 {[%clk 0:01:05]}  Kg8 {[%clk 0:01:03]} 29. Bd4 {[%clk 0:01:03]}  c5 {[%clk 0:01:00]} 30. bxc5 {[%clk 0:00:59]}  Nxc5 {[%clk 0:01:01]} 31. Bxc5 {[%clk 0:00:53]}  Rxc5 {[%clk 0:01:02]} 32. Kc3 {[%clk 0:00:52]}  e3 {[%clk 0:01:01]} 33. Kd4 {[%clk 0:00:51]}  Rh5 {[%clk 0:00:52]} 34. Re1 {[%clk 0:00:46]}  e2 {[%clk 0:00:45]} 35. c5 {[%clk 0:00:40]}  Rxh2 {[%clk 0:00:45]} 36. c6 {[%clk 0:00:39]}  Kf7 {[%clk 0:00:31]} 37. c7 {[%clk 0:00:30]}  Rc8 {[%clk 0:00:30]} 38. Rd7+ {[%clk 0:00:30]}  Ke6 {[%clk 0:00:14]} 39. Rxg7 {[%clk 0:00:30]}  Kd6 {[%clk 0:00:15]} 40. Kd3 {[%clk 0:00:31]}  Rh3+ {[%clk 0:00:08]} 41. Ke4 {[%clk 0:00:21]}  Re8+ {[%clk 0:00:05]} 42. Kf4 {[%clk 0:00:21]}  Rc3 {[%clk 0:00:06]} 43. Rxh7 {[%clk 0:00:19]}  Rxa3 {[%clk 0:00:02]} 44. Rc1 {[%clk 0:00:16]}  Rc8 {[%clk 0:00:02]} 45. Rh6+ {[%clk 0:00:16]}  Kd7 {[%clk 0:00:02]} 46. Rh7+ {[%clk 0:00:17]}  Kd6 {[%clk 0:00:03]} 47. Rh6+ {[%clk 0:00:15]}  Kd5 {[%clk 0:00:03]} 48. Rh4 {[%clk 0:00:15]}  Ra4+ {[%clk 0:00:04]} 49. Kg3 {[%clk 0:00:15]}  Rxh4 {[%clk 0:00:04]} 50. Kxh4 {[%clk 0:00:16]}  Rxc7 {[%clk 0:00:05]} 51. Re1 {[%clk 0:00:16]}  Rc2 {[%clk 0:00:05]} 52. Kg3 {[%clk 0:00:16]}  Ke4 {[%clk 0:00:06]} 53. Kf2 {[%clk 0:00:15]}  Kd3 {[%clk 0:00:06]} 54. Kf3 {[%clk 0:00:15]}  Ra2 {[%clk 0:00:05]} 55. Kf2 {[%clk 0:00:15]}  Rb2 {[%clk 0:00:05]} 56. Kf3 {[%clk 0:00:15]}  Rb7 {[%clk 0:00:06]} 57. Kf2 {[%clk 0:00:16]}  Rf7+ {[%clk 0:00:06]} 0-1


[Site "https://www.chess.com"]

[Event "Titled Tuesday Blitz April 18 Early 2023"]
[White "Malek, Jan"]
[Black "Puranik, Abhimanyu"]
[WhiteFideId "21864080"]
[BlackFideId "5061245"]
[WhiteElo "2255"]
[BlackElo "2477"]
[Result "0-1"]
[Round "02"]
[TimeControl "180+2"]
[Date "2023.04.18"]
[WhiteClock "0:00:15"]
[BlackClock "0:01:24"]

1. e4 {[%clk 0:03:00]}  e6 {[%clk 0:02:57]} 2. d4 {[%clk 0:02:56]}  d5 {[%clk 0:02:56]} 3. Nd2 {[%clk 0:02:56]}  c5 {[%clk 0:02:53]} 4. Ngf3 {[%clk 0:02:53]}  cxd4 {[%clk 0:02:52]} 5. Nxd4 {[%clk 0:02:52]}  Nc6 {[%clk 0:02:49]} 6. Nxc6 {[%clk 0:02:49]}  bxc6 {[%clk 0:02:49]} 7. Bd3 {[%clk 0:02:49]}  Nf6 {[%clk 0:02:47]} 8. O-O {[%clk 0:02:49]}  Be7 {[%clk 0:02:48]} 9. b3 {[%clk 0:02:47]}  O-O {[%clk 0:02:46]} 10. Bb2 {[%clk 0:02:47]}  a5 {[%clk 0:02:46]} 11. a4 {[%clk 0:02:30]}  Bb7 {[%clk 0:02:40]} 12. Qe2 {[%clk 0:02:27]}  c5 {[%clk 0:02:38]} 13. e5 {[%clk 0:02:22]}  Nd7 {[%clk 0:02:36]} 14. f4 {[%clk 0:02:22]}  Qb6 {[%clk 0:02:21]} 15. c4 {[%clk 0:02:03]}  d4 {[%clk 0:02:18]} 16. f5 {[%clk 0:01:28]}  exf5 {[%clk 0:02:00]} 17. Rxf5 {[%clk 0:01:25]}  g6 {[%clk 0:01:55]} 18. Rff1 {[%clk 0:00:51]}  Bg5 {[%clk 0:01:55]} 19. Nf3 {[%clk 0:00:48]}  Be3+ {[%clk 0:01:54]} 20. Kh1 {[%clk 0:00:47]}  Rae8 {[%clk 0:01:48]} 21. Bc1 {[%clk 0:00:37]}  Nxe5 {[%clk 0:01:45]} 22. Nxe5 {[%clk 0:00:21]}  Rxe5 {[%clk 0:01:46]} 23. Bxe3 {[%clk 0:00:20]}  Rxe3 {[%clk 0:01:46]} 24. Qc2 {[%clk 0:00:21]}  Rfe8 {[%clk 0:01:44]} 25. Rf2 {[%clk 0:00:21]}  Re1+ {[%clk 0:01:37]} 26. Rxe1 {[%clk 0:00:21]}  Rxe1+ {[%clk 0:01:37]} 27. Rf1 {[%clk 0:00:22]}  Re3 {[%clk 0:01:37]} 28. Qf2 {[%clk 0:00:21]}  Qc7 {[%clk 0:01:34]} 29. Bc2 {[%clk 0:00:19]}  Qe7 {[%clk 0:01:33]} 30. Bd1 {[%clk 0:00:17]}  h5 {[%clk 0:01:25]} 31. Kg1 {[%clk 0:00:15]}  h4 {[%clk 0:01:25]} 32. h3 {[%clk 0:00:15]}  Rg3 {[%clk 0:01:24]} 0-1


[Site "https://www.chess.com"]

[Event "Titled Tuesday Blitz April 18 Early 2023"]
[White "Berezin, Viktor"]
[Black "Sjugirov, Sanan"]
[WhiteFideId "14107872"]
[BlackFideId "4189302"]
[WhiteElo "2310"]
[BlackElo "2569"]
[Result "0-1"]
[Round "02"]
[TimeControl "180+2"]
[Date "2023.04.18"]
[WhiteClock "0:00:19"]
[BlackClock "0:00:21"]

1. d4 {[%clk 0:03:00]}  Nf6 {[%clk 0:02:59]} 2. Nf3 {[%clk 0:03:00]}  d5 {[%clk 0:02:58]} 3. c4 {[%clk 0:02:59]}  e6 {[%clk 0:02:58]} 4. g3 {[%clk 0:02:59]}  Be7 {[%clk 0:02:51]} 5. Bg2 {[%clk 0:02:59]}  O-O {[%clk 0:02:51]} 6. O-O {[%clk 0:02:59]}  dxc4 {[%clk 0:02:50]} 7. Qc2 {[%clk 0:02:58]}  a6 {[%clk 0:02:50]} 8. a4 {[%clk 0:02:57]}  Bd7 {[%clk 0:02:50]} 9. Bg5 {[%clk 0:02:56]}  Bc6 {[%clk 0:02:46]} 10. Qxc4 {[%clk 0:02:55]}  Nbd7 {[%clk 0:02:45]} 11. Nc3 {[%clk 0:02:53]}  h6 {[%clk 0:02:44]} 12. Bxf6 {[%clk 0:02:51]}  Nxf6 {[%clk 0:02:45]} 13. a5 {[%clk 0:02:44]}  Qd6 {[%clk 0:02:30]} 14. Rfd1 {[%clk 0:02:34]}  Rfd8 {[%clk 0:02:21]} 15. e3 {[%clk 0:02:21]}  Bxf3 {[%clk 0:02:07]} 16. Bxf3 {[%clk 0:02:22]}  c6 {[%clk 0:02:07]} 17. Na4 {[%clk 0:02:17]}  Qc7 {[%clk 0:02:00]} 18. Nb6 {[%clk 0:02:12]}  Rab8 {[%clk 0:01:59]} 19. b4 {[%clk 0:02:12]}  Nd5 {[%clk 0:01:55]} 20. Nxd5 {[%clk 0:02:05]}  exd5 {[%clk 0:01:55]} 21. Qc3 {[%clk 0:02:05]}  Qd7 {[%clk 0:01:49]} 22. Rab1 {[%clk 0:01:57]}  Bd6 {[%clk 0:01:47]} 23. e4 {[%clk 0:01:47]}  dxe4 {[%clk 0:01:47]} 24. Bxe4 {[%clk 0:01:48]}  Qe7 {[%clk 0:01:42]} 25. Re1 {[%clk 0:01:46]}  Qf6 {[%clk 0:01:41]} 26. Qc4 {[%clk 0:01:43]}  Rbc8 {[%clk 0:01:39]} 27. Bc2 {[%clk 0:01:36]}  Bf8 {[%clk 0:01:36]} 28. Rbd1 {[%clk 0:01:29]}  g6 {[%clk 0:01:26]} 29. Bb3 {[%clk 0:01:26]}  Kg7 {[%clk 0:01:07]} 30. Re4 {[%clk 0:01:17]}  Bd6 {[%clk 0:01:04]} 31. Rde1 {[%clk 0:01:14]}  Rc7 {[%clk 0:00:58]} 32. Re8 {[%clk 0:01:11]}  Rxe8 {[%clk 0:00:57]} 33. Rxe8 {[%clk 0:01:12]}  Re7 {[%clk 0:00:47]} 34. Rc8 {[%clk 0:00:43]}  Re4 {[%clk 0:00:44]} 35. Qc2 {[%clk 0:00:36]}  Rxd4 {[%clk 0:00:33]} 36. b5 {[%clk 0:00:24]}  cxb5 {[%clk 0:00:27]} 37. Qe2 {[%clk 0:00:22]}  Qe5 {[%clk 0:00:20]} 38. Qf3 {[%clk 0:00:20]}  Qe1+ {[%clk 0:00:20]} 39. Kg2 {[%clk 0:00:20]}  Qe4 {[%clk 0:00:21]} 40. Rd8 {[%clk 0:00:17]}  Qxf3+ {[%clk 0:00:19]} 41. Kxf3 {[%clk 0:00:18]}  Rd3+ {[%clk 0:00:20]} 42. Ke4 {[%clk 0:00:18]}  Rxb3 {[%clk 0:00:20]} 43. Rxd6 {[%clk 0:00:19]}  Ra3 {[%clk 0:00:20]} 44. Rb6 {[%clk 0:00:18]}  Rxa5 {[%clk 0:00:21]} 45. Rxb7 {[%clk 0:00:19]}  Ra4+ {[%clk 0:00:21]} 46. Ke5 {[%clk 0:00:19]}  Ra2 {[%clk 0:00:21]} 0-1


[Site "https://www.chess.com"]